[Event "SELL Games"]
[Site "Tartu, Estonia"]
[Date "2023.05.19"]
[Round "5.2"]
[White "Stauskas, Lukas"]
[Black "Laurusas, Tomas"]
[Result "1-0"]
[TimeControl "15min + 10sec per move each"]
[BlackTitle "GM"]
[WhiteFideId "12808148"]
[BlackFideId "12803731"]
[WhiteElo "2296"]
[BlackElo "2504"]

1. d4 {[%clk 00:15:19]} {[%emt 00:00:44]} Nf6 {[%clk 00:14:44]} 2. c4 {[%clk
00:15:28]} {[%emt 00:00:38]} e6 {[%clk 00:14:53]} {[%emt 00:00:01]} 3. Nc3
{[%clk 00:15:36]} {[%emt 00:00:01]} Bb4 {[%clk 00:15:01]} {[%emt 00:00:02]} 4.
Qc2 {[%clk 00:15:44]} {[%emt 00:00:02]} d6 {[%clk 00:15:01]} {[%emt 00:00:10]}
5. Nf3 {[%clk 00:15:48]} {[%emt 00:00:06]} Nbd7 {[%clk 00:15:00]} {[%emt
00:00:12]} 6. Bd2 {[%clk 00:15:42]} {[%emt 00:00:16]} e5 {[%clk 00:14:57]}
{[%emt 00:00:12]} 7. dxe5 {[%clk 00:15:37]} {[%emt 00:00:16]} dxe5 {[%clk
00:15:03]} {[%emt 00:00:04]} 8. a3 {[%clk 00:15:31]} {[%emt 00:00:16]} Bxc3
{[%clk 00:14:31]} {[%emt 00:00:42]} 9. Bxc3 {[%clk 00:14:25]} {[%emt 00:01:17]}
Qe7 {[%clk 00:14:21]} {[%emt 00:00:20]} 10. e3 {[%clk 00:14:22]} {[%emt
00:00:13]} O-O {[%clk 00:14:25]} {[%emt 00:00:05]} 11. Be2 {[%clk 00:14:24]}
{[%emt 00:00:09]} b6 {[%clk 00:14:26]} {[%emt 00:00:09]} 12. O-O {[%clk
00:14:06]} {[%emt 00:00:28]} Bb7 {[%clk 00:14:33]} {[%emt 00:00:02]} 13. b4
{[%clk 00:12:27]} {[%emt 00:01:50]} c5 {[%clk 00:13:58]} {[%emt 00:00:45]} 14.
Rfd1 {[%clk 00:12:04]} {[%emt 00:00:33]} Ne4 {[%clk 00:13:52]} {[%emt
00:00:17]} 15. Bb2 {[%clk 00:11:44]} {[%emt 00:00:29]} Ng5 {[%clk 00:13:17]}
{[%emt 00:00:44]} 16. Qf5 {[%clk 00:11:16]} {[%emt 00:00:39]} Nxf3+ {[%clk
00:09:15]} {[%emt 00:04:13]} 17. Bxf3 {[%clk 00:11:05]} {[%emt 00:00:20]} Bxf3
{[%clk 00:09:22]} {[%emt 00:00:03]} 18. Rxd7 {[%clk 00:10:26]} {[%emt
00:00:48]} Be4 {[%clk 00:09:31]} 19. Rxe7 {[%clk 00:09:21]} {[%emt 00:01:16]}
Bxf5 {[%clk 00:09:40]} {[%emt 00:00:02]} 20. Rxe5 {[%clk 00:09:00]} {[%emt
00:00:31]} Be6 {[%clk 00:09:33]} {[%emt 00:00:16]} 21. bxc5 {[%clk 00:08:28]}
{[%emt 00:00:42]} Bxc4 {[%clk 00:09:38]} {[%emt 00:00:05]} 22. Rc1 {[%clk
00:07:17]} {[%emt 00:01:21]} Be6 {[%clk 00:07:49]} {[%emt 00:01:59]} 23. c6
{[%clk 00:06:50]} {[%emt 00:00:37]} Rac8 {[%clk 00:07:45]} {[%emt 00:00:14]} 24.
c7 {[%clk 00:06:51]} {[%emt 00:00:08]} Rfe8 {[%clk 00:07:49]} {[%emt 00:00:07]}
25. Rg5 {[%clk 00:05:22]} {[%emt 00:01:39]} g6 {[%clk 00:07:57]} {[%emt
00:00:01]} 26. Bf6 {[%clk 00:05:16]} {[%emt 00:00:16]} Bf5 {[%clk 00:08:02]}
{[%emt 00:00:06]} 27. Rg3 {[%clk 00:04:38]} {[%emt 00:00:49]} Re6 {[%clk
00:08:00]} {[%emt 00:00:10]} 28. Bd8 {[%clk 00:04:43]} {[%emt 00:00:06]} Kg7
{[%clk 00:06:56]} {[%emt 00:01:15]} 29. Rf3 {[%clk 00:04:42]} {[%emt 00:00:11]}
Rd6 {[%clk 00:07:04]} {[%emt 00:00:02]} 30. h3 {[%clk 00:04:24]} {[%emt
00:00:27]} Rd3 {[%clk 00:06:58]} {[%emt 00:00:16]} 31. Ra1 {[%clk 00:04:22]}
{[%emt 00:00:12]} Be4 {[%clk 00:06:20]} {[%emt 00:00:48]} 32. Bf6+ {[%clk
00:04:31]} Kf8 {[%clk 00:06:12]} {[%emt 00:00:18]} 33. Rf4 {[%clk 00:04:39]}
Bf5 {[%clk 00:05:54]} {[%emt 00:00:28]} 34. Bd8 {[%clk 00:04:44]} {[%emt
00:00:06]} Ke8 {[%clk 00:05:53]} {[%emt 00:00:11]} 35. g4 {[%clk 00:04:34]}
{[%emt 00:00:21]} Be6 {[%clk 00:05:58]} {[%emt 00:00:04]} 36. Ra4 {[%clk
00:04:00]} {[%emt 00:00:44]} Ra8 {[%clk 00:06:06]} {[%emt 00:00:02]} 37. Rc1
{[%clk 00:03:46]} {[%emt 00:00:23]} Rd6 {[%clk 00:05:29]} {[%emt 00:00:46]} 38.
Kh2 {[%clk 00:03:00]} {[%emt 00:00:57]} h6 {[%clk 00:05:36]} {[%emt 00:00:03]}
39. Kg3 {[%clk 00:03:07]} {[%emt 00:00:03]} Rd3 {[%clk 00:04:38]} {[%emt
00:01:07]} 40. Re4 {[%clk 00:02:46]} {[%emt 00:00:32]} Kd7 {[%clk 00:04:44]}
{[%emt 00:00:04]} 41. Rd4+ {[%clk 00:02:51]} {[%emt 00:00:05]} Rxd4 {[%clk
00:04:53]} {[%emt 00:00:02]} 42. exd4 {[%clk 00:02:59]} {[%emt 00:00:01]} Rc8
{[%clk 00:04:37]} {[%emt 00:00:27]} 43. Kf4 {[%clk 00:03:07]} {[%emt 00:00:01]}
Kd6 {[%clk 00:04:46]} {[%emt 00:00:01]} 44. Ke3 {[%clk 00:02:55]} {[%emt
00:00:21]} a5 {[%clk 00:04:34]} {[%emt 00:00:23]} 45. Rb1 {[%clk 00:02:39]}
{[%emt 00:00:27]} Kc6 {[%clk 00:04:41]} {[%emt 00:00:02]} 46. Ke4 {[%clk
00:02:20]} {[%emt 00:00:29]} h5 {[%clk 00:04:46]} {[%emt 00:00:06]} 47. Ke5
{[%clk 00:02:11]} {[%emt 00:00:19]} b5 {[%clk 00:04:27]} {[%emt 00:00:28]} 48.
Rc1+ {[%clk 00:01:46]} {[%emt 00:00:35]} Bc4 {[%clk 00:04:30]} {[%emt
00:00:08]} 49. gxh5 {[%clk 00:01:52]} {[%emt 00:00:04]} gxh5 {[%clk 00:04:39]}
{[%emt 00:00:01]} 50. d5+ {[%clk 00:01:33]} {[%emt 00:00:29]} Kd7 {[%clk
00:04:30]} {[%emt 00:00:20]} 51. Kd4 {[%clk 00:01:06]} {[%emt 00:00:36]} Kd6
{[%clk 00:03:45]} {[%emt 00:00:56]} 52. a4 {[%clk 00:01:15]} {[%emt 00:00:01]}
Bxd5 {[%clk 00:03:51]} {[%emt 00:00:03]} 53. axb5 {[%clk 00:01:23]} {[%emt
00:00:02]} Bb7 {[%clk 00:03:52]} {[%emt 00:00:09]} 54. Rd1 {[%clk 00:00:54]}
{[%emt 00:00:40]} a4 {[%clk 00:03:00]} {[%emt 00:01:02]} 55. Kc4+ {[%clk
00:01:02]} {[%emt 00:00:01]} Ke6 {[%clk 00:02:56]} {[%emt 00:00:14]} 56. Kc5
{[%clk 00:01:11]} a3 {[%clk 00:02:58]} {[%emt 00:00:09]} 57. Re1+ {[%clk
00:01:06]} {[%emt 00:00:15]} Kf5 {[%clk 00:03:04]} {[%emt 00:00:04]} 58. Ra1
{[%clk 00:00:50]} {[%emt 00:00:26]} Ra8 {[%clk 00:02:54]} {[%emt 00:00:20]} 59.
Kb6 {[%clk 00:00:57]} {[%emt 00:00:02]} Bc8 {[%clk 00:02:59]} {[%emt 00:00:06]}
60. Kc6 {[%clk 00:01:02]} {[%emt 00:00:04]} a2 {[%clk 00:02:17]} {[%emt
00:00:52]} 61. Be7 {[%clk 00:00:39]} {[%emt 00:00:32]} Ke4 {[%clk 00:02:06]}
{[%emt 00:00:22]} 62. b6 {[%clk 00:00:35]} {[%emt 00:00:14]} Kd3 {[%clk
00:01:43]} {[%emt 00:00:33]} 63. Bc5 {[%clk 00:00:38]} {[%emt 00:00:07]} Ra6
{[%clk 00:01:53]} 64. Rxa2 {[%clk 00:00:23]} {[%emt 00:00:27]} Rxa2 {[%clk
00:01:55]} {[%emt 00:00:07]} 65. b7 {[%clk 00:00:32]} Bxh3 {[%clk 00:01:28]}
{[%emt 00:00:37]} 66. c8=Q {[%clk 00:00:37]} {[%emt 00:00:05]} Bg2+ {[%clk
00:01:32]} {[%emt 00:00:06]} 67. Kc7 {[%clk 00:00:43]} {[%emt 00:00:04]} Rc2
{[%clk 00:01:37]} {[%emt 00:00:06]} 68. Kd6 {[%clk 00:00:42]} {[%emt 00:00:10]}
1-0

[Event "SELL Games"]
[Site "Tartu, Estonia"]
[Date "2023.05.19"]
[Round "5.3"]
[White "Simkunaite, Gabija"]
[Black "Sirp, Karl Aleksander"]
[Result "0-1"]
[TimeControl "15min + 10sec per move each"]
[WhiteTitle "WFM"]
[WhiteFideId "12808253"]
[BlackFideId "4504712"]
[WhiteElo "1964"]
[BlackElo "2033"]

1. e4 {[%clk 00:15:17]} {[%emt 00:00:02]} d5 {[%clk 00:15:17]} {[%emt
00:00:04]} 2. exd5 {[%clk 00:15:25]} {[%emt 00:00:02]} Qxd5 {[%clk 00:15:24]}
{[%emt 00:00:03]} 3. Nc3 {[%clk 00:15:33]} {[%emt 00:00:02]} Qa5 {[%clk
00:15:33]} {[%emt 00:00:01]} 4. Bc4 {[%clk 00:15:41]} {[%emt 00:00:01]} Nf6
{[%clk 00:15:41]} {[%emt 00:00:02]} 5. d3 {[%clk 00:15:48]} {[%emt 00:00:03]}
c6 {[%clk 00:15:50]} {[%emt 00:00:02]} 6. Bd2 {[%clk 00:15:56]} {[%emt
00:00:02]} Qc7 {[%clk 00:15:56]} {[%emt 00:00:04]} 7. Qe2 {[%clk 00:16:02]}
{[%emt 00:00:05]} Bf5 {[%clk 00:15:59]} {[%emt 00:00:07]} 8. f3 {[%clk
00:16:04]} {[%emt 00:00:08]} h5 {[%clk 00:15:49]} {[%emt 00:00:19]} 9. O-O-O
{[%clk 00:15:33]} {[%emt 00:00:40]} Nbd7 {[%clk 00:15:52]} {[%emt 00:00:08]} 10.
Qf2 {[%clk 00:15:12]} {[%emt 00:00:31]} e6 {[%clk 00:15:49]} {[%emt 00:00:14]}
11. Nge2 {[%clk 00:15:13]} {[%emt 00:00:08]} Nd5 {[%clk 00:15:23]} {[%emt
00:00:36]} 12. Ne4 {[%clk 00:14:29]} {[%emt 00:00:53]} Be7 {[%clk 00:12:51]}
{[%emt 00:02:43]} 13. Nd4 {[%clk 00:13:31]} {[%emt 00:01:07]} Qb6 {[%clk
00:12:01]} {[%emt 00:01:01]} 14. Rde1 {[%clk 00:12:31]} {[%emt 00:01:09]} Bg6
{[%clk 00:11:28]} {[%emt 00:00:42]} 15. Rhf1 {[%clk 00:09:52]} {[%emt
00:02:50]} e5 {[%clk 00:10:28]} {[%emt 00:01:11]} 16. Ne2 {[%clk 00:09:13]}
{[%emt 00:00:49]} Qxf2 {[%clk 00:10:22]} {[%emt 00:00:16]} 17. Nxf2 {[%clk
00:09:15]} {[%emt 00:00:07]} O-O-O {[%clk 00:09:48]} {[%emt 00:00:45]} 18. Nc3
{[%clk 00:09:11]} {[%emt 00:00:13]} Nxc3 {[%clk 00:09:48]} {[%emt 00:00:10]} 19.
Bxc3 {[%clk 00:09:17]} {[%emt 00:00:03]} f6 {[%clk 00:09:40]} {[%emt 00:00:19]}
20. f4 {[%clk 00:08:50]} {[%emt 00:00:37]} Bd6 {[%clk 00:09:36]} {[%emt
00:00:13]} 21. fxe5 {[%clk 00:08:31]} {[%emt 00:00:28]} Nxe5 {[%clk 00:09:33]}
{[%emt 00:00:14]} 22. Be6+ {[%clk 00:08:22]} {[%emt 00:00:19]} Kb8 {[%clk
00:09:41]} {[%emt 00:00:03]} 23. Ne4 {[%clk 00:08:18]} {[%emt 00:00:13]} Bc7
{[%clk 00:09:00]} {[%emt 00:00:52]} 24. h3 {[%clk 00:08:01]} {[%emt 00:00:27]}
Rhe8 {[%clk 00:08:24]} {[%emt 00:00:45]} 25. Bf5 {[%clk 00:08:07]} {[%emt
00:00:05]} Bf7 {[%clk 00:07:56]} {[%emt 00:00:38]} 26. Nc5 {[%clk 00:07:48]}
{[%emt 00:00:29]} Bd6 {[%clk 00:07:05]} {[%emt 00:01:01]} 27. Ne4 {[%clk
00:07:21]} {[%emt 00:00:37]} Bf8 {[%clk 00:06:59]} {[%emt 00:00:17]} 28. Ng5
{[%clk 00:05:58]} {[%emt 00:01:32]} Bg8 {[%clk 00:06:33]} {[%emt 00:00:36]} 29.
Bxe5+ {[%clk 00:05:38]} {[%emt 00:00:29]} Rxe5 {[%clk 00:06:13]} {[%emt
00:00:31]} 30. Rxe5 {[%clk 00:05:46]} {[%emt 00:00:02]} fxe5 {[%clk 00:06:22]}
{[%emt 00:00:01]} 31. Bg6 {[%clk 00:05:40]} {[%emt 00:00:16]} Bc5 {[%clk
00:04:19]} {[%emt 00:02:13]} 32. Ne4 {[%clk 00:04:49]} {[%emt 00:01:02]} Be3+
{[%clk 00:04:09]} {[%emt 00:00:20]} 33. Kd1 {[%clk 00:03:52]} {[%emt 00:01:06]}
h4 {[%clk 00:03:58]} {[%emt 00:00:21]} 34. Ke2 {[%clk 00:03:54]} {[%emt
00:00:08]} Bf4 {[%clk 00:04:02]} {[%emt 00:00:07]} 35. Nd2 {[%clk 00:03:38]}
{[%emt 00:00:25]} Bxd2 {[%clk 00:03:03]} {[%emt 00:01:09]} 36. Kxd2 {[%clk
00:03:47]} Bd5 {[%clk 00:03:11]} {[%emt 00:00:02]} 37. Rf2 {[%clk 00:03:38]}
{[%emt 00:00:19]} Rd6 {[%clk 00:03:17]} {[%emt 00:00:04]} 38. Bh5 {[%clk
00:03:34]} {[%emt 00:00:14]} e4 {[%clk 00:02:15]} {[%emt 00:01:12]} 39. dxe4
{[%clk 00:03:36]} {[%emt 00:00:08]} Bf7+ {[%clk 00:02:14]} {[%emt 00:00:11]} 40.
Ke3 {[%clk 00:03:42]} {[%emt 00:00:03]} Bxh5 {[%clk 00:02:21]} {[%emt
00:00:03]} 41. Rf4 {[%clk 00:03:20]} {[%emt 00:00:31]} g5 {[%clk 00:02:21]}
{[%emt 00:00:12]} 42. Rf5 {[%clk 00:03:20]} {[%emt 00:00:09]} Rg6 {[%clk
00:02:23]} {[%emt 00:00:09]} 43. c4 {[%clk 00:03:20]} {[%emt 00:00:10]} Rg7
{[%clk 00:01:20]} {[%emt 00:01:13]} 44. c5 {[%clk 00:03:24]} {[%emt 00:00:07]}
b6 {[%clk 00:01:26]} {[%emt 00:00:04]} 45. b4 {[%clk 00:03:12]} {[%emt
00:00:21]} Kb7 {[%clk 00:01:34]} {[%emt 00:00:02]} 46. a4 {[%clk 00:03:16]}
{[%emt 00:00:06]} Bd1 {[%clk 00:01:32]} {[%emt 00:00:11]} 47. a5 {[%clk
00:02:55]} {[%emt 00:00:32]} bxa5 {[%clk 00:01:40]} {[%emt 00:00:02]} 48. bxa5
{[%clk 00:03:04]} {[%emt 00:00:01]} g4 {[%clk 00:01:13]} {[%emt 00:00:37]} 49.
hxg4 {[%clk 00:02:59]} {[%emt 00:00:14]} Rxg4 {[%clk 00:01:09]} {[%emt
00:00:14]} 50. Rf7+ {[%clk 00:02:40]} {[%emt 00:00:29]} Ka6 {[%clk 00:01:18]}
{[%emt 00:00:01]} 51. e5 {[%clk 00:02:25]} {[%emt 00:00:25]} Bb3 {[%clk
00:01:08]} {[%emt 00:00:21]} 52. Rf4 {[%clk 00:01:39]} {[%emt 00:00:55]} Rxg2
{[%clk 00:00:40]} {[%emt 00:00:38]} 53. Rxh4 {[%clk 00:01:44]} {[%emt
00:00:05]} Bd5 {[%clk 00:00:29]} {[%emt 00:00:22]} 54. Kf4 {[%clk 00:01:28]}
{[%emt 00:00:26]} Kxa5 {[%clk 00:00:30]} {[%emt 00:00:09]} 55. Kf5 {[%clk
00:01:30]} {[%emt 00:00:07]} Rf2 {[%clk 00:00:33]} {[%emt 00:00:06]} 56. Kg5
{[%clk 00:01:37]} {[%emt 00:00:04]} Be6 {[%clk 00:00:32]} {[%emt 00:00:11]} 57.
Kg6 {[%clk 00:01:32]} {[%emt 00:00:15]} Kb5 {[%clk 00:00:37]} {[%emt 00:00:05]}
58. Rd4 {[%clk 00:01:36]} {[%emt 00:00:06]} Kxc5 {[%clk 00:00:33]} {[%emt
00:00:14]} 59. Rd6 {[%clk 00:01:45]} {[%emt 00:00:01]} Bd5 {[%clk 00:00:40]}
{[%emt 00:00:03]} 60. Rd7 {[%clk 00:01:54]} {[%emt 00:00:01]} a5 {[%clk
00:00:36]} {[%emt 00:00:14]} 61. Kg5 {[%clk 00:01:58]} {[%emt 00:00:05]} Be6
{[%clk 00:00:32]} {[%emt 00:00:14]} 62. Ra7 {[%clk 00:02:07]} {[%emt 00:00:01]}
Rf5 {[%clk 00:00:33]} {[%emt 00:00:09]} 63. Kg6 {[%clk 00:02:15]} {[%emt
00:00:02]} Kb6 {[%clk 00:00:39]} {[%emt 00:00:04]} 64. Re7 {[%clk 00:02:23]}
{[%emt 00:00:02]} Rxe5 {[%clk 00:00:47]} {[%emt 00:00:02]} 65. Kf6 {[%clk
00:02:31]} {[%emt 00:00:02]} Re1 {[%clk 00:00:54]} {[%emt 00:00:02]} 66. Rh7
{[%clk 00:02:39]} {[%emt 00:00:02]} Bd5 {[%clk 00:01:01]} {[%emt 00:00:04]} 0-1

[Event "SELL Games"]
[Site "Tartu, Estonia"]
[Date "2023.05.19"]
[Round "5.4"]
[White "Obolonin, Filipp"]
[Black "Piksis, Davids"]
[Result "1-0"]
[TimeControl "15min + 10sec per move each"]
[WhiteFideId "4505549"]
[BlackFideId "11609117"]
[WhiteElo "2017"]
[BlackElo "1770"]

1. d4 {[%clk 00:15:18]} {[%emt 00:00:02]} Nf6 {[%clk 00:15:19]} {[%emt
00:00:01]} 2. Nf3 {[%clk 00:15:27]} e6 {[%clk 00:15:22]} {[%emt 00:00:07]} 3.
g3 {[%clk 00:15:36]} {[%emt 00:00:01]} d5 {[%clk 00:15:21]} {[%emt 00:00:11]} 4.
Bg2 {[%clk 00:15:45]} {[%emt 00:00:01]} Be7 {[%clk 00:15:12]} {[%emt 00:00:20]}
5. O-O {[%clk 00:15:53]} {[%emt 00:00:01]} Nbd7 {[%clk 00:15:19]} {[%emt
00:00:04]} 6. b3 {[%clk 00:15:59]} {[%emt 00:00:03]} O-O {[%clk 00:15:20]}
{[%emt 00:00:09]} 7. Bb2 {[%clk 00:16:09]} b6 {[%clk 00:15:02]} {[%emt
00:00:29]} 8. Nbd2 {[%clk 00:16:17]} {[%emt 00:00:01]} Bb7 {[%clk 00:15:08]}
{[%emt 00:00:04]} 9. Rc1 {[%clk 00:16:23]} {[%emt 00:00:03]} Rc8 {[%clk
00:14:49]} {[%emt 00:00:29]} 10. Ne5 {[%clk 00:16:24]} {[%emt 00:00:09]} c5
{[%clk 00:14:28]} {[%emt 00:00:30]} 11. Nxd7 {[%clk 00:16:31]} {[%emt
00:00:02]} Qxd7 {[%clk 00:14:30]} {[%emt 00:00:09]} 12. dxc5 {[%clk 00:16:38]}
{[%emt 00:00:02]} Rxc5 {[%clk 00:13:31]} {[%emt 00:01:10]} 13. c4 {[%clk
00:16:42]} {[%emt 00:00:06]} dxc4 {[%clk 00:12:49]} {[%emt 00:00:51]} 14. Nxc4
{[%clk 00:16:50]} {[%emt 00:00:02]} Bxg2 {[%clk 00:09:25]} {[%emt 00:03:34]} 15.
Kxg2 {[%clk 00:16:59]} {[%emt 00:00:01]} Rd8 {[%clk 00:09:04]} {[%emt
00:00:31]} 16. Kg1 {[%clk 00:16:29]} {[%emt 00:00:40]} Rd5 {[%clk 00:06:48]}
{[%emt 00:02:26]} 17. Qc2 {[%clk 00:16:26]} {[%emt 00:00:14]} b5 {[%clk
00:06:42]} {[%emt 00:00:16]} 18. Ne5 {[%clk 00:16:35]} {[%emt 00:00:01]} Qd6
{[%clk 00:05:49]} {[%emt 00:01:04]} 19. Nf3 {[%clk 00:14:31]} {[%emt 00:02:14]}
h6 {[%clk 00:04:48]} {[%emt 00:01:11]} 20. e4 {[%clk 00:14:39]} {[%emt
00:00:03]} Rc5 {[%clk 00:04:23]} {[%emt 00:00:35]} 21. Qxc5 {[%clk 00:12:16]}
{[%emt 00:02:33]} Qxc5 {[%clk 00:04:32]} 22. Rxc5 {[%clk 00:12:25]} {[%emt
00:00:01]} Bxc5 {[%clk 00:04:41]} 23. Bxf6 {[%clk 00:12:27]} {[%emt 00:00:08]}
gxf6 {[%clk 00:04:47]} {[%emt 00:00:04]} 24. Rc1 {[%clk 00:12:35]} {[%emt
00:00:02]} Bb6 {[%clk 00:04:31]} {[%emt 00:00:26]} 25. Kf1 {[%clk 00:12:40]}
{[%emt 00:00:06]} Kg7 {[%clk 00:04:24]} {[%emt 00:00:17]} 26. Ke2 {[%clk
00:12:46]} {[%emt 00:00:03]} Kg6 {[%clk 00:04:13]} {[%emt 00:00:21]} 27. Ne1
{[%clk 00:11:49]} {[%emt 00:01:07]} f5 {[%clk 00:04:05]} {[%emt 00:00:19]} 28.
exf5+ {[%clk 00:11:57]} {[%emt 00:00:02]} Kxf5 {[%clk 00:04:11]} {[%emt
00:00:04]} 29. h3 {[%clk 00:11:59]} {[%emt 00:00:08]} f6 {[%clk 00:03:37]}
{[%emt 00:00:45]} 30. Nd3 {[%clk 00:12:02]} {[%emt 00:00:06]} e5 {[%clk
00:03:25]} {[%emt 00:00:23]} 31. Rc6 {[%clk 00:12:02]} {[%emt 00:00:09]} h5
{[%clk 00:02:36]} {[%emt 00:00:59]} 32. Ne1 {[%clk 00:11:11]} {[%emt 00:01:01]}
Kg6 {[%clk 00:02:04]} {[%emt 00:00:42]} 33. Ng2 {[%clk 00:11:15]} {[%emt
00:00:07]} Kg5 {[%clk 00:01:52]} {[%emt 00:00:22]} 34. Rc3 {[%clk 00:09:51]}
{[%emt 00:01:34]} Kg6 {[%clk 00:01:31]} {[%emt 00:00:31]} 35. Nh4+ {[%clk
00:09:50]} {[%emt 00:00:11]} Kg5 {[%clk 00:01:22]} {[%emt 00:00:18]} 36. Rf3
{[%clk 00:09:59]} {[%emt 00:00:02]} Rd6 {[%clk 00:01:03]} {[%emt 00:00:28]} 37.
Rf5+ {[%clk 00:10:07]} {[%emt 00:00:02]} Kh6 {[%clk 00:01:12]} {[%emt
00:00:02]} 38. Rxe5 {[%clk 00:10:01]} {[%emt 00:00:16]} Rc6 {[%clk 00:00:50]}
{[%emt 00:00:31]} 39. Rf5 {[%clk 00:09:46]} {[%emt 00:00:25]} Rc2+ {[%emt
00:00:07]} 40. Kf1 Kg7 {[%clk 00:00:43]} {[%emt 00:00:19]} 41. a4 {[%clk
00:10:00]} {[%emt 00:00:07]} bxa4 {[%clk 00:00:48]} {[%emt 00:00:05]} 42. bxa4
{[%clk 00:10:09]} {[%emt 00:00:01]} Ra2 {[%clk 00:00:50]} {[%emt 00:00:07]} 43.
Rf4 {[%clk 00:10:15]} {[%emt 00:00:03]} Kf7 {[%clk 00:00:22]} {[%emt 00:00:40]}
44. Nf5 {[%clk 00:10:23]} {[%emt 00:00:02]} Kg6 {[%clk 00:00:23]} {[%emt
00:00:08]} 45. Ne7+ {[%clk 00:10:31]} {[%emt 00:00:02]} Kf7 {[%clk 00:00:26]}
{[%emt 00:00:06]} 46. Nd5 {[%clk 00:10:40]} {[%emt 00:00:02]} Ke6 {[%clk
00:00:14]} {[%emt 00:00:22]} 47. Nxb6 {[%clk 00:10:22]} {[%emt 00:00:28]} axb6
{[%clk 00:00:21]} {[%emt 00:00:02]} 48. Rb4 {[%clk 00:10:31]} {[%emt 00:00:01]}
Kf5 {[%clk 00:00:18]} {[%emt 00:00:13]} 49. Kg2 {[%clk 00:10:34]} {[%emt
00:00:07]} Ra3 {[%clk 00:00:23]} {[%emt 00:00:05]} 50. h4 {[%clk 00:10:33]}
{[%emt 00:00:12]} Kg6 {[%clk 00:00:19]} {[%emt 00:00:14]} 51. Rf4 {[%clk
00:10:39]} {[%emt 00:00:03]} Rb3 {[%clk 00:00:13]} {[%emt 00:00:16]} 52. Kf1
{[%clk 00:10:47]} {[%emt 00:00:02]} b5 {[%clk 00:00:18]} {[%emt 00:00:05]} 53.
axb5 {[%clk 00:10:49]} {[%emt 00:00:09]} Rxb5 {[%clk 00:00:27]} 54. Kg2 {[%clk
00:10:50]} {[%emt 00:00:10]} Rb3 {[%clk 00:00:36]} 55. Rf3 {[%clk 00:10:54]}
{[%emt 00:00:05]} Rb5 {[%clk 00:00:45]} {[%emt 00:00:02]} 56. Ra3 {[%clk
00:11:02]} {[%emt 00:00:02]} Rc5 {[%clk 00:00:53]} {[%emt 00:00:02]} 57. Ra2
{[%clk 00:11:05]} {[%emt 00:00:07]} Rb5 {[%clk 00:01:02]} {[%emt 00:00:01]} 58.
f3 {[%clk 00:11:14]} Rb4 {[%clk 00:01:05]} {[%emt 00:00:06]} 59. Re2 {[%clk
00:10:56]} {[%emt 00:00:28]} Ra4 {[%clk 00:01:06]} {[%emt 00:00:10]} 60. Re4
{[%clk 00:11:05]} {[%emt 00:00:01]} Ra5 {[%clk 00:01:11]} {[%emt 00:00:05]} 61.
Rb4 {[%clk 00:11:05]} {[%emt 00:00:10]} Rc5 {[%clk 00:00:58]} {[%emt 00:00:22]}
62. g4 {[%clk 00:11:12]} {[%emt 00:00:03]} Rc6 {[%clk 00:00:49]} {[%emt
00:00:20]} 63. Kg3 {[%clk 00:11:19]} {[%emt 00:00:03]} Ra6 {[%clk 00:00:42]}
{[%emt 00:00:17]} 64. Kf4 {[%clk 00:11:13]} {[%emt 00:00:15]} Ra5 {[%clk
00:00:25]} {[%emt 00:00:27]} 65. Rb6 {[%clk 00:11:16]} {[%emt 00:00:07]} Ra4+
{[%clk 00:00:33]} {[%emt 00:00:03]} 66. Kg3 {[%clk 00:11:24]} Ra5 {[%clk
00:00:40]} {[%emt 00:00:03]} 67. g5 {[%clk 00:11:29]} {[%emt 00:00:05]} Rf5
{[%clk 00:00:38]} {[%emt 00:00:13]} 68. Rxf6+ {[%clk 00:11:19]} {[%emt
00:00:19]} Rxf6 {[%clk 00:00:47]} 69. gxf6 {[%clk 00:11:28]} {[%emt 00:00:01]}
Kxf6 {[%clk 00:00:57]} {[%emt 00:00:01]} 70. Kf4 {[%clk 00:11:36]} Ke6 {[%clk
00:01:04]} {[%emt 00:00:03]} 71. Kg5 {[%clk 00:11:45]} {[%emt 00:00:01]} Kd5
{[%emt 00:00:18]} 1-0